[Event "Late-Titled-Tuesday-Blitz-January-23-2024"]
[Site "Chess.com"]
[Date "2024.01.23"]
[Round "11"]
[White "RantomOpening"]
[Black "GothamChess"]
[Result "1-0"]
[WhiteElo "2566"]
[BlackElo "2747"]
[TimeControl "180+1"]
[EndTime "16:01:29 PST"]
[Termination "RantomOpening won on time"]

1. c4 {[%clk 0:03:00]} 1... g6 {[%clk 0:02:20.8]} 2. Nf3 {[%clk 0:02:59.5]} 2...
Bg7 {[%clk 0:02:20.8]} 3. e4 {[%clk 0:02:59.8]} 3... d6 {[%clk 0:02:20.9]} 4. d4
{[%clk 0:03:00.1]} 4... Bg4 {[%clk 0:02:21.6]} 5. Be2 {[%clk 0:02:57.4]} 5...
Bxf3 {[%clk 0:02:20.3]} 6. Bxf3 {[%clk 0:02:57.6]} 6... Nc6 {[%clk 0:02:21]} 7.
Be3 {[%clk 0:02:57.4]} 7... e5 {[%clk 0:02:20.9]} 8. d5 {[%clk 0:02:57.1]} 8...
Nd4 {[%clk 0:02:21.3]} 9. Nc3 {[%clk 0:02:57.2]} 9... c5 {[%clk 0:02:20.1]} 10.
Qa4+ {[%clk 0:02:48.4]} 10... Kf8 {[%clk 0:02:18.3]} 11. h4 {[%clk 0:02:34.5]}
11... h5 {[%clk 0:02:16.5]} 12. O-O-O {[%clk 0:02:30.1]} 12... a6 {[%clk
0:02:15.3]} 13. Bxd4 {[%clk 0:02:24.1]} 13... exd4 {[%clk 0:02:10]} 14. Ne2
{[%clk 0:02:23.1]} 14... b5 {[%clk 0:02:05.4]} 15. cxb5 {[%clk 0:02:21.1]} 15...
axb5 {[%clk 0:02:05.8]} 16. Qxb5 {[%clk 0:02:22]} 16... Rxa2 {[%clk 0:02:05.1]}
17. Kb1 {[%clk 0:02:20.8]} 17... Ra5 {[%clk 0:01:52.9]} 18. Qb7 {[%clk 0:02:10]}
18... Nf6 {[%clk 0:01:43.4]} 19. Kc2 {[%clk 0:01:59.1]} 19... Ra8 {[%clk
0:01:15.6]} 20. Ra1 {[%clk 0:01:42.5]} 20... Rb8 {[%clk 0:01:15.3]} 21. Qc6
{[%clk 0:01:42.1]} 21... Kg8 {[%clk 0:00:27.9]} 22. Ra7 {[%clk 0:01:41]} 22...
Kh7 {[%clk 0:00:28.2]} 23. Rxf7 {[%clk 0:01:38.5]} 23... d3+ {[%clk 0:00:26.8]}
24. Kxd3 {[%clk 0:01:36.5]} 24... Qa5 {[%clk 0:00:24.2]} 25. Qc7 {[%clk
0:01:20.7]} 25... Qb5+ {[%clk 0:00:18.5]} 26. Ke3 {[%clk 0:01:20.5]} 26... Nxd5+
{[%clk 0:00:14.8]} 27. exd5 {[%clk 0:01:17.4]} 27... Rbe8+ {[%clk 0:00:10]} 28.
Kf4 {[%clk 0:01:17.5]} 28... Rhf8 {[%clk 0:00:09.9]} 29. Kg3 {[%clk 0:01:12.6]}
29... Qc4 {[%clk 0:00:09.6]} 30. Rxg7+ {[%clk 0:01:12.1]} 1-0

[Event "Late-Titled-Tuesday-Blitz-January-23-2024"]
[Site "Chess.com"]
[Date "2024.01.23"]
[Round "11"]
[White "Alexei_Gubajdullin"]
[Black "AlexPapasimakopoulos"]
[Result "1-0"]
[WhiteElo "2633"]
[BlackElo "2755"]
[TimeControl "180+1"]
[EndTime "16:01:30 PST"]
[Termination "Alexei_Gubajdullin won by checkmate"]

1. Nf3 {[%clk 0:02:59.4]} 1... d5 {[%clk 0:02:51.9]} 2. g3 {[%clk 0:02:59.2]}
2... c6 {[%clk 0:02:52.1]} 3. Bg2 {[%clk 0:02:59.6]} 3... Bg4 {[%clk 0:02:52.4]}
4. O-O {[%clk 0:02:59.5]} 4... Nd7 {[%clk 0:02:52.9]} 5. c4 {[%clk 0:02:59.6]}
5... e6 {[%clk 0:02:52.8]} 6. d3 {[%clk 0:02:58.6]} 6... Ngf6 {[%clk 0:02:52.8]}
7. Qb3 {[%clk 0:02:58.7]} 7... Qb6 {[%clk 0:02:52.2]} 8. Be3 {[%clk 0:02:58.7]}
8... Bc5 {[%clk 0:02:51.8]} 9. d4 {[%clk 0:02:43.1]} 9... Be7 {[%clk 0:02:42.9]}
10. c5 {[%clk 0:02:43]} 10... Qxb3 {[%clk 0:02:43.1]} 11. axb3 {[%clk
0:02:42.9]} 11... a6 {[%clk 0:02:43.7]} 12. b4 {[%clk 0:02:42.4]} 12... Rc8
{[%clk 0:02:44.4]} 13. Nbd2 {[%clk 0:02:42.3]} 13... O-O {[%clk 0:02:42.8]} 14.
Nb3 {[%clk 0:02:42.4]} 14... Rfe8 {[%clk 0:02:43.3]} 15. Na5 {[%clk 0:02:42.2]}
15... b6 {[%clk 0:02:38.9]} 16. Nb3 {[%clk 0:02:24.3]} 16... Ra8 {[%clk
0:02:36.1]} 17. Bf4 {[%clk 0:02:17.5]} 17... Ne4 {[%clk 0:02:18]} 18. Rfc1
{[%clk 0:02:08.4]} 18... Rec8 {[%clk 0:02:17.5]} 19. h3 {[%clk 0:02:01.7]} 19...
Bh5 {[%clk 0:02:11.6]} 20. g4 {[%clk 0:02:01.6]} 20... Bg6 {[%clk 0:02:12.2]}
21. e3 {[%clk 0:01:56.7]} 21... f6 {[%clk 0:02:09.4]} 22. Bf1 {[%clk 0:01:56.3]}
22... b5 {[%clk 0:01:42.7]} 23. Na5 {[%clk 0:01:53]} 23... Ra7 {[%clk
0:01:41.3]} 24. Nxc6 {[%clk 0:01:49.9]} 24... Rxc6 {[%clk 0:01:35.3]} 25. Bxb5
{[%clk 0:01:50.8]} 25... axb5 {[%clk 0:01:34.1]} 26. Rxa7 {[%clk 0:01:50.1]}
26... Be8 {[%clk 0:01:34.7]} 27. Rca1 {[%clk 0:01:46.2]} 27... g5 {[%clk
0:01:33.3]} 28. Bh2 {[%clk 0:01:45.7]} 28... Kf8 {[%clk 0:01:28.6]} 29. R1a6
{[%clk 0:01:42.9]} 29... Rxa6 {[%clk 0:01:26.4]} 30. Rxa6 {[%clk 0:01:42.6]}
30... Nb8 {[%clk 0:01:24]} 31. Bxb8 {[%clk 0:01:40.5]} 31... Kf7 {[%clk
0:01:19]} 32. Ra7 {[%clk 0:01:35.9]} 32... Kf8 {[%clk 0:01:17.7]} 33. Ra6 {[%clk
0:01:14.5]} 33... Kf7 {[%clk 0:01:16.2]} 34. Ne1 {[%clk 0:01:12.6]} 34... Nd2
{[%clk 0:01:13.1]} 35. Nd3 {[%clk 0:01:10.2]} 35... Nc4 {[%clk 0:01:06.7]} 36.
c6 {[%clk 0:01:08.6]} 36... h6 {[%clk 0:00:58.5]} 37. Nc5 {[%clk 0:01:08.2]}
37... Nd6 {[%clk 0:00:35]} 38. Bxd6 {[%clk 0:01:07.3]} 38... Bxd6 {[%clk
0:00:35.9]} 39. c7 {[%clk 0:01:07.5]} 39... Bxc7 {[%clk 0:00:35.9]} 40. Ra7
{[%clk 0:01:07.5]} 40... e5 {[%clk 0:00:36.6]} 41. Rxc7+ {[%clk 0:01:07.1]}
41... Kg6 {[%clk 0:00:37.5]} 42. Ne6 {[%clk 0:01:03.6]} 42... Bc6 {[%clk
0:00:38]} 43. Nf8# {[%clk 0:01:02.8]} 1-0

[Event "Late-Titled-Tuesday-Blitz-January-23-2024"]
[Site "Chess.com"]
[Date "2024.01.23"]
[Round "11"]
[White "Msb2"]
[Black "vugarrasulov"]
[Result "0-1"]
[WhiteElo "3030"]
[BlackElo "2948"]
[TimeControl "180+1"]
[EndTime "16:01:34 PST"]
[Termination "vugarrasulov won by checkmate"]

1. d4 {[%clk 0:03:00.9]} 1... c5 {[%clk 0:03:00.2]} 2. d5 {[%clk 0:03:01.2]}
2... d6 {[%clk 0:03:00.7]} 3. c4 {[%clk 0:03:00.6]} 3... e5 {[%clk 0:03:01.1]}
4. e4 {[%clk 0:02:58.8]} 4... Be7 {[%clk 0:02:59.3]} 5. Nf3 {[%clk 0:02:59.1]}
5... Nf6 {[%clk 0:02:59.6]} 6. Nc3 {[%clk 0:02:59.2]} 6... O-O {[%clk
0:02:59.9]} 7. Be2 {[%clk 0:02:59.4]} 7... Nbd7 {[%clk 0:03:00.5]} 8. O-O {[%clk
0:03:00]} 8... Ne8 {[%clk 0:03:01.1]} 9. Ne1 {[%clk 0:02:59.8]} 9... g6 {[%clk
0:03:01.2]} 10. Nd3 {[%clk 0:02:59.6]} 10... Ng7 {[%clk 0:03:01.5]} 11. f4
{[%clk 0:02:59.3]} 11... exf4 {[%clk 0:03:00.3]} 12. Bxf4 {[%clk 0:03:00.2]}
12... f5 {[%clk 0:02:56.8]} 13. e5 {[%clk 0:02:55.6]} 13... dxe5 {[%clk
0:02:56.1]} 14. Nxe5 {[%clk 0:02:55.8]} 14... Nxe5 {[%clk 0:02:56.6]} 15. Bxe5
{[%clk 0:02:56.7]} 15... Bd6 {[%clk 0:02:57.3]} 16. Bxd6 {[%clk 0:02:53.9]}
16... Qxd6 {[%clk 0:02:58.2]} 17. Qd2 {[%clk 0:02:54.4]} 17... a6 {[%clk
0:02:57.7]} 18. Rae1 {[%clk 0:02:53.3]} 18... Bd7 {[%clk 0:02:58]} 19. Bf3
{[%clk 0:02:48.4]} 19... Rae8 {[%clk 0:02:58.3]} 20. a3 {[%clk 0:02:46.9]} 20...
b6 {[%clk 0:02:56.9]} 21. Ne2 {[%clk 0:02:26.3]} 21... b5 {[%clk 0:02:55.1]} 22.
b3 {[%clk 0:02:22.2]} 22... Re5 {[%clk 0:02:54.2]} 23. Nc1 {[%clk 0:02:20.1]}
23... Rfe8 {[%clk 0:02:53.6]} 24. Nd3 {[%clk 0:02:20.5]} 24... R5e7 {[%clk
0:02:36.3]} 25. Rxe7 {[%clk 0:02:18.4]} 25... Qxe7 {[%clk 0:02:36.5]} 26. Re1
{[%clk 0:02:18]} 26... Qf6 {[%clk 0:02:30.1]} 27. Rxe8+ {[%clk 0:02:02.6]} 27...
Bxe8 {[%clk 0:02:31]} 28. Nxc5 {[%clk 0:01:58]} 28... Qa1+ {[%clk 0:02:28.8]}
29. Kf2 {[%clk 0:01:55.4]} 29... Qxa3 {[%clk 0:02:29.3]} 30. Qd4 {[%clk
0:01:44.8]} 30... Qa2+ {[%clk 0:02:28.2]} 31. Kg3 {[%clk 0:01:44.2]} 31... f4+
{[%clk 0:02:27]} 32. Kxf4 {[%clk 0:01:35.8]} 32... Nf5 {[%clk 0:02:24.5]} 33.
Qc3 {[%clk 0:01:25.5]} 33... Qf2 {[%clk 0:02:19.7]} 34. Ne4 {[%clk 0:00:55.9]}
34... Qh4+ {[%clk 0:02:19.4]} 35. Ke5 {[%clk 0:00:50.8]} 35... Qe7+ {[%clk
0:02:11.4]} 36. Kf4 {[%clk 0:00:51.4]} 36... Qh4+ {[%clk 0:02:09.7]} 37. Ke5
{[%clk 0:00:35.5]} 37... Qxh2+ {[%clk 0:02:06.4]} 38. Ke6 {[%clk 0:00:35.4]}
38... Qc7 {[%clk 0:01:57.6]} 39. Nf6+ {[%clk 0:00:20.5]} 39... Kf8 {[%clk
0:01:58.1]} 40. Qb4+ {[%clk 0:00:20.7]} 40... Ne7 {[%clk 0:01:56]} 41. Nxh7+
{[%clk 0:00:21]} 41... Kg8 {[%clk 0:01:54.8]} 42. Nf6+ {[%clk 0:00:21.5]} 42...
Kf8 {[%clk 0:01:54.6]} 43. Nxe8 {[%clk 0:00:13.5]} 43... Kxe8 {[%clk 0:01:47.2]}
44. Qd6 {[%clk 0:00:11.8]} 44... Qc8+ {[%clk 0:01:46.8]} 45. Ke5 {[%clk
0:00:12.4]} 45... bxc4 {[%clk 0:01:46.5]} 46. bxc4 {[%clk 0:00:12.4]} 46... Qxc4
{[%clk 0:01:45.4]} 47. Qxa6 {[%clk 0:00:11.4]} 47... Qxa6 {[%clk 0:01:45.1]} 48.
d6 {[%clk 0:00:07.8]} 48... Nf5 {[%clk 0:01:44.1]} 49. Ke6 {[%clk 0:00:06.2]}
49... Qxd6# {[%clk 0:01:41.2]} 0-1

[Event "Late-Titled-Tuesday-Blitz-January-23-2024"]
[Site "Chess.com"]
[Date "2024.01.23"]
[Round "11"]
[White "LUISMIGUELOV"]
[Black "Inepton_Fermion"]
[Result "0-1"]
[WhiteElo "2181"]
[BlackElo "2421"]
[TimeControl "180+1"]
[EndTime "16:01:48 PST"]
[Termination "Inepton_Fermion won on time"]

1. e4 {[%clk 0:02:55.1]} 1... g6 {[%clk 0:03:00.9]} 2. d4 {[%clk 0:02:54]} 2...
Bg7 {[%clk 0:03:01.5]} 3. c3 {[%clk 0:02:54.4]} 3... d6 {[%clk 0:02:55.6]} 4.
Bg5 {[%clk 0:02:51.6]} 4... Nc6 {[%clk 0:02:55.3]} 5. d5 {[%clk 0:02:42.9]} 5...
Ne5 {[%clk 0:02:50.6]} 6. f4 {[%clk 0:02:43.3]} 6... Nd7 {[%clk 0:02:41]} 7. Nf3
{[%clk 0:02:41]} 7... Ngf6 {[%clk 0:02:39.7]} 8. Nbd2 {[%clk 0:02:36.5]} 8...
Nc5 {[%clk 0:02:31.2]} 9. Bb5+ {[%clk 0:02:29.3]} 9... Bd7 {[%clk 0:02:30.8]}
10. Bxd7+ {[%clk 0:02:18.1]} 10... Qxd7 {[%clk 0:02:28.9]} 11. Qe2 {[%clk
0:02:18.6]} 11... h6 {[%clk 0:02:20.2]} 12. Bh4 {[%clk 0:02:14.4]} 12... O-O
{[%clk 0:02:12.2]} 13. b4 {[%clk 0:02:13.1]} 13... Na4 {[%clk 0:02:07.7]} 14.
Rc1 {[%clk 0:02:10.1]} 14... Nh5 {[%clk 0:02:07.9]} 15. g3 {[%clk 0:01:20.7]}
15... Nxc3 {[%clk 0:02:00.4]} 16. Qc4 {[%clk 0:01:13.7]} 16... c6 {[%clk
0:01:46.9]} 17. Rxc3 {[%clk 0:01:11.8]} 17... cxd5 {[%clk 0:01:46.9]} 18. Qd3
{[%clk 0:01:00.8]} 18... Bxc3 {[%clk 0:01:31]} 19. Qxc3 {[%clk 0:01:00.5]} 19...
Rac8 {[%clk 0:01:31.1]} 20. Qb2 {[%clk 0:00:50.4]} 20... dxe4 {[%clk 0:01:24.6]}
21. Nd4 {[%clk 0:00:11.6]} 21... e5 {[%clk 0:01:17.5]} 22. Ne2 {[%clk 0:00:09]}
22... exf4 {[%clk 0:00:51.1]} 23. Nxe4 {[%clk 0:00:07.5]} 23... Qe6 {[%clk
0:00:34.3]} 0-1

[Event "Late-Titled-Tuesday-Blitz-January-23-2024"]
[Site "Chess.com"]
[Date "2024.01.23"]
[Round "11"]
[White "mishanick"]
[Black "LevonAronian"]
[Result "1-0"]
[WhiteElo "3078"]
[BlackElo "3107"]
[TimeControl "180+1"]
[EndTime "16:01:50 PST"]
[Termination "mishanick won by resignation"]

1. d4 {[%clk 0:03:00.9]} 1... Nf6 {[%clk 0:02:59.6]} 2. c4 {[%clk 0:03:01.6]}
2... c5 {[%clk 0:02:59.9]} 3. d5 {[%clk 0:03:01.8]} 3... g6 {[%clk 0:03:00.5]}
4. Nc3 {[%clk 0:03:02]} 4... Bg7 {[%clk 0:03:01.1]} 5. e4 {[%clk 0:03:02.6]}
5... d6 {[%clk 0:03:01.7]} 6. Nf3 {[%clk 0:03:03.3]} 6... O-O {[%clk 0:03:02.1]}
7. Bd3 {[%clk 0:03:02.5]} 7... Nbd7 {[%clk 0:03:01.1]} 8. O-O {[%clk 0:03:02.2]}
8... a6 {[%clk 0:03:01.3]} 9. h3 {[%clk 0:03:01.4]} 9... e5 {[%clk 0:02:58.1]}
10. Nh2 {[%clk 0:02:32.6]} 10... Kh8 {[%clk 0:02:49.1]} 11. g4 {[%clk
0:02:29.2]} 11... Ng8 {[%clk 0:02:43.8]} 12. f3 {[%clk 0:02:25.6]} 12... f5
{[%clk 0:02:36]} 13. exf5 {[%clk 0:02:23.7]} 13... gxf5 {[%clk 0:02:35.9]} 14.
Bxf5 {[%clk 0:02:24.2]} 14... Rxf5 {[%clk 0:02:35.5]} 15. gxf5 {[%clk
0:02:24.4]} 15... Ndf6 {[%clk 0:02:35.3]} 16. Bg5 {[%clk 0:02:05.3]} 16... Bxf5
{[%clk 0:02:33.3]} 17. Ng4 {[%clk 0:02:06]} 17... Qe8 {[%clk 0:02:27.9]} 18. Ne4
{[%clk 0:01:51]} 18... Nxe4 {[%clk 0:02:10.6]} 19. fxe4 {[%clk 0:01:50.8]} 19...
Bxe4 {[%clk 0:02:11.3]} 20. Kh2 {[%clk 0:01:36.4]} 20... b5 {[%clk 0:02:10.3]}
21. Nf6 {[%clk 0:01:09.5]} 21... Nxf6 {[%clk 0:02:02.1]} 22. Bxf6 {[%clk
0:01:10.4]} 22... Bxf6 {[%clk 0:02:02.8]} 23. Rxf6 {[%clk 0:01:10.3]} 23... bxc4
{[%clk 0:02:03.5]} 24. Qg4 {[%clk 0:01:05.3]} 24... Bg6 {[%clk 0:01:35.8]} 25.
Raf1 {[%clk 0:01:03.3]} 25... Rb8 {[%clk 0:01:23.5]} 26. R1f2 {[%clk 0:00:48.4]}
26... e4 {[%clk 0:01:06.1]} 27. Re6 {[%clk 0:00:44.2]} 27... Qg8 {[%clk
0:00:44]} 28. Qf4 {[%clk 0:00:44.6]} 28... Qg7 {[%clk 0:00:36.9]} 29. Qxd6
{[%clk 0:00:44]} 29... Rg8 {[%clk 0:00:29.6]} 30. Qe5 {[%clk 0:00:43.8]} 30...
Qxe5+ {[%clk 0:00:23.7]} 31. Rxe5 {[%clk 0:00:44.7]} 31... Rd8 {[%clk
0:00:24.3]} 32. Kg3 {[%clk 0:00:45]} 32... Kg7 {[%clk 0:00:24]} 33. Kf4 {[%clk
0:00:44.8]} 1-0

[Event "Late-Titled-Tuesday-Blitz-January-23-2024"]
[Site "Chess.com"]
[Date "2024.01.23"]
[Round "11"]
[White "StankovicIvan"]
[Black "Cubitas"]
[Result "0-1"]
[WhiteElo "2557"]
[BlackElo "2730"]
[TimeControl "180+1"]
[EndTime "16:02:01 PST"]
[Termination "Cubitas won by checkmate"]

1. e4 {[%clk 0:02:57.1]} 1... c5 {[%clk 0:02:59.8]} 2. c4 {[%clk 0:02:56.9]}
2... Nc6 {[%clk 0:02:59.7]} 3. Nc3 {[%clk 0:02:57.8]} 3... g6 {[%clk 0:02:59.6]}
4. g3 {[%clk 0:02:58.2]} 4... Bg7 {[%clk 0:03:00]} 5. Bg2 {[%clk 0:02:58.9]}
5... Nf6 {[%clk 0:03:00]} 6. Nge2 {[%clk 0:02:59.4]} 6... O-O {[%clk 0:03:00.3]}
7. d3 {[%clk 0:02:59.7]} 7... Ne8 {[%clk 0:03:00.6]} 8. Be3 {[%clk 0:02:59.5]}
8... d6 {[%clk 0:02:59.5]} 9. d4 {[%clk 0:02:59.5]} 9... cxd4 {[%clk 0:02:58.9]}
10. Nxd4 {[%clk 0:03:00.4]} 10... Nc7 {[%clk 0:02:57.5]} 11. O-O {[%clk
0:02:57.9]} 11... Bd7 {[%clk 0:02:56.8]} 12. Rc1 {[%clk 0:02:57.2]} 12... Rc8
{[%clk 0:02:56.2]} 13. b3 {[%clk 0:02:57]} 13... a6 {[%clk 0:02:38.5]} 14. h3
{[%clk 0:02:35]} 14... Nxd4 {[%clk 0:02:36.9]} 15. Bxd4 {[%clk 0:02:34.7]} 15...
Bxd4 {[%clk 0:02:36.4]} 16. Qxd4 {[%clk 0:02:35.2]} 16... Ne6 {[%clk 0:02:35.3]}
17. Qd2 {[%clk 0:02:35.7]} 17... b5 {[%clk 0:02:35.2]} 18. cxb5 {[%clk
0:02:31.1]} 18... axb5 {[%clk 0:02:36.1]} 19. Nd5 {[%clk 0:02:30.1]} 19... f6
{[%clk 0:02:20.1]} 20. f4 {[%clk 0:02:19.7]} 20... Nc5 {[%clk 0:02:09.6]} 21. f5
{[%clk 0:02:13.7]} 21... g5 {[%clk 0:02:03.4]} 22. h4 {[%clk 0:02:08.8]} 22...
h6 {[%clk 0:01:57.8]} 23. hxg5 {[%clk 0:02:08.6]} 23... hxg5 {[%clk 0:01:57.1]}
24. g4 {[%clk 0:02:02.3]} 24... Kg7 {[%clk 0:01:56.3]} 25. Rc3 {[%clk
0:01:40.5]} 25... Bc6 {[%clk 0:01:53.9]} 26. Rfc1 {[%clk 0:01:24.8]} 26... Bxd5
{[%clk 0:01:48.5]} 27. Qxd5 {[%clk 0:01:25.3]} 27... b4 {[%clk 0:01:45.1]} 28.
Rc4 {[%clk 0:01:23.8]} 28... Qb6 {[%clk 0:01:43.5]} 29. Qd4 {[%clk 0:01:21.4]}
29... Rb8 {[%clk 0:01:44]} 30. Bf3 {[%clk 0:01:09.7]} 30... Rh8 {[%clk
0:01:42.1]} 31. Kg2 {[%clk 0:01:09.1]} 31... Qa5 {[%clk 0:01:35]} 32. R1c2
{[%clk 0:01:07.3]} 32... Rh4 {[%clk 0:01:32.8]} 33. Kg3 {[%clk 0:00:56.5]} 33...
Rbh8 {[%clk 0:01:30.1]} 34. Bg2 {[%clk 0:00:56.5]} 34... Qc7 {[%clk 0:01:25.2]}
35. Qd5 {[%clk 0:00:51.7]} 35... Qa7 {[%clk 0:01:23.5]} 36. Rxb4 {[%clk
0:00:32.5]} 36... Nd7 {[%clk 0:01:07.6]} 37. Qd4 {[%clk 0:00:32.6]} 37... Qxd4
{[%clk 0:00:59.4]} 38. Rxd4 {[%clk 0:00:33.5]} 38... Ne5 {[%clk 0:01:00]} 39.
Rc7 {[%clk 0:00:30.2]} 39... Rxg4+ {[%clk 0:00:59.1]} 40. Kf2 {[%clk 0:00:29.2]}
40... Rh2 {[%clk 0:00:59]} 41. Rxe7+ {[%clk 0:00:26.3]} 41... Kf8 {[%clk
0:00:57.6]} 42. Re6 {[%clk 0:00:25.9]} 42... Rgxg2+ {[%clk 0:00:53.5]} 43. Kf1
{[%clk 0:00:26.2]} 43... Rf2+ {[%clk 0:00:51.7]} 44. Ke1 {[%clk 0:00:23.7]}
44... Nf3+ {[%clk 0:00:52.1]} 45. Kd1 {[%clk 0:00:24.2]} 45... Rh1# {[%clk
0:00:50.1]} 0-1

[Event "Late-Titled-Tuesday-Blitz-January-23-2024"]
[Site "Chess.com"]
[Date "2024.01.23"]
[Round "11"]
[White "js20000"]
[Black "ChessFighter_2011"]
[Result "0-1"]
[WhiteElo "2877"]
[BlackElo "2946"]
[TimeControl "180+1"]
[EndTime "16:02:04 PST"]
[Termination "ChessFighter_2011 won by resignation"]

1. d4 {[%clk 0:03:00.9]} 1... Nf6 {[%clk 0:02:59.9]} 2. c4 {[%clk 0:02:59.6]}
2... g6 {[%clk 0:03:00.3]} 3. Nc3 {[%clk 0:02:59.4]} 3... Bg7 {[%clk 0:03:00.7]}
4. e4 {[%clk 0:02:59.6]} 4... d6 {[%clk 0:03:01.2]} 5. Nf3 {[%clk 0:02:59.7]}
5... O-O {[%clk 0:03:01.7]} 6. Be2 {[%clk 0:02:59.9]} 6... e5 {[%clk 0:03:00.6]}
7. O-O {[%clk 0:02:59.8]} 7... Nc6 {[%clk 0:03:01.1]} 8. d5 {[%clk 0:02:59.8]}
8... Ne7 {[%clk 0:03:01.7]} 9. Ne1 {[%clk 0:02:57.2]} 9... Ne8 {[%clk
0:03:01.8]} 10. Nd3 {[%clk 0:02:54.9]} 10... f5 {[%clk 0:03:00.9]} 11. f3 {[%clk
0:02:55.2]} 11... f4 {[%clk 0:03:00.8]} 12. c5 {[%clk 0:02:55.4]} 12... g5
{[%clk 0:03:01]} 13. b4 {[%clk 0:02:53.5]} 13... Ng6 {[%clk 0:03:01]} 14. b5
{[%clk 0:02:52.7]} 14... Rf7 {[%clk 0:03:01.2]} 15. a4 {[%clk 0:02:51.4]} 15...
Bf8 {[%clk 0:03:01.1]} 16. Ba3 {[%clk 0:02:49.2]} 16... h5 {[%clk 0:02:59]} 17.
a5 {[%clk 0:02:48.4]} 17... Nf6 {[%clk 0:02:51.3]} 18. b6 {[%clk 0:02:48.2]}
18... cxb6 {[%clk 0:02:36.3]} 19. axb6 {[%clk 0:02:47.2]} 19... dxc5 {[%clk
0:02:33.8]} 20. Bxc5 {[%clk 0:02:44]} 20... Bxc5+ {[%clk 0:02:08.3]} 21. Nxc5
{[%clk 0:02:44.9]} 21... Qxb6 {[%clk 0:02:08.4]} 22. Na4 {[%clk 0:02:43.2]}
22... Qd6 {[%clk 0:02:08.7]} 23. Ne6 {[%clk 0:02:34.7]} 23... Bxe6 {[%clk
0:01:56.5]} 24. dxe6 {[%clk 0:02:35.6]} 24... Qxe6 {[%clk 0:01:57.4]} 25. Rc1
{[%clk 0:02:30.3]} 25... Rc8 {[%clk 0:01:36.9]} 26. Kh1 {[%clk 0:02:27.4]} 26...
Kg7 {[%clk 0:01:36.5]} 27. Nc5 {[%clk 0:02:26.2]} 27... Qb6 {[%clk 0:01:30.2]}
28. Nd3 {[%clk 0:02:25.9]} 28... Rxc1 {[%clk 0:01:29.6]} 29. Qxc1 {[%clk
0:02:26.8]} 29... g4 {[%clk 0:01:28.2]} 30. Nc5 {[%clk 0:02:20.5]} 30... Re7
{[%clk 0:01:27.8]} 31. Rd1 {[%clk 0:02:19.7]} 31... Qc6 {[%clk 0:01:24.4]} 32.
Qa3 {[%clk 0:02:17.1]} 32... b6 {[%clk 0:01:23.6]} 33. Na6 {[%clk 0:02:11]}
33... Qc2 {[%clk 0:01:23.5]} 34. Re1 {[%clk 0:02:00.3]} 34... Qd2 {[%clk
0:01:23.2]} 35. Qa1 {[%clk 0:02:00]} 35... Rd7 {[%clk 0:01:19.6]} 36. Bb5 {[%clk
0:01:51.6]} 36... Nh4 {[%clk 0:01:16.1]} 37. Rg1 {[%clk 0:01:47]} 37... Re7
{[%clk 0:01:06.4]} 38. Qa3 {[%clk 0:01:45.7]} 38... Ng6 {[%clk 0:01:00.4]} 39.
Nb4 {[%clk 0:01:44.8]} 39... Qd6 {[%clk 0:00:59.9]} 40. Qb3 {[%clk 0:01:43.7]}
40... a5 {[%clk 0:00:56.6]} 41. Nc6 {[%clk 0:01:41]} 41... Rc7 {[%clk
0:00:56.7]} 42. Rd1 {[%clk 0:01:40.5]} 42... Qc5 {[%clk 0:00:55.8]} 43. Nd8
{[%clk 0:01:37.3]} 43... Nf8 {[%clk 0:00:54.9]} 44. h3 {[%clk 0:00:30.9]} 44...
Qc2 {[%clk 0:00:54.4]} 45. Qxc2 {[%clk 0:00:22.6]} 45... Rxc2 {[%clk 0:00:55.3]}
46. hxg4 {[%clk 0:00:23]} 46... hxg4 {[%clk 0:00:55.3]} 47. fxg4 {[%clk
0:00:23.4]} 47... Nxg4 {[%clk 0:00:56.2]} 48. Nc6 {[%clk 0:00:20.2]} 48... Nf2+
{[%clk 0:00:56]} 0-1

[Event "Late-Titled-Tuesday-Blitz-January-23-2024"]
[Site "Chess.com"]
[Date "2024.01.23"]
[Round "11"]
[White "howitzer14"]
[Black "Ajedrecista3000"]
[Result "1-0"]
[WhiteElo "2951"]
[BlackElo "2589"]
[TimeControl "180+1"]
[EndTime "16:02:04 PST"]
[Termination "howitzer14 won by resignation"]

1. d4 {[%clk 0:03:00.9]} 1... Nf6 {[%clk 0:03:00]} 2. c4 {[%clk 0:03:00.5]} 2...
e6 {[%clk 0:03:00.6]} 3. Nc3 {[%clk 0:02:53.8]} 3... Bb4 {[%clk 0:03:00.5]} 4.
Bd2 {[%clk 0:02:54.4]} 4... O-O {[%clk 0:02:59.6]} 5. e3 {[%clk 0:02:53.1]} 5...
d5 {[%clk 0:02:59.3]} 6. cxd5 {[%clk 0:02:36.4]} 6... exd5 {[%clk 0:03:00.2]} 7.
Bd3 {[%clk 0:02:36.8]} 7... Re8 {[%clk 0:02:59.5]} 8. Nge2 {[%clk 0:02:37]} 8...
Nbd7 {[%clk 0:02:48.7]} 9. a3 {[%clk 0:02:27.2]} 9... Bd6 {[%clk 0:02:46.2]} 10.
Nb5 {[%clk 0:02:25.6]} 10... Bf8 {[%clk 0:02:46]} 11. Bb4 {[%clk 0:02:22.6]}
11... a5 {[%clk 0:02:36.5]} 12. Bxf8 {[%clk 0:02:19.9]} 12... Nxf8 {[%clk
0:02:37.4]} 13. O-O {[%clk 0:02:17.9]} 13... c6 {[%clk 0:02:37.8]} 14. Nbc3
{[%clk 0:02:17.5]} 14... Bg4 {[%clk 0:02:27.3]} 15. Qc2 {[%clk 0:02:11.4]} 15...
Bxe2 {[%clk 0:02:24.3]} 16. Nxe2 {[%clk 0:02:11.6]} 16... g6 {[%clk 0:02:16.7]}
17. b4 {[%clk 0:02:08.6]} 17... axb4 {[%clk 0:02:17.6]} 18. axb4 {[%clk
0:02:09]} 18... Qd6 {[%clk 0:02:05.4]} 19. b5 {[%clk 0:01:56.5]} 19... Ne6
{[%clk 0:02:05.2]} 20. bxc6 {[%clk 0:01:47.9]} 20... bxc6 {[%clk 0:02:04.9]} 21.
Rxa8 {[%clk 0:01:47.5]} 21... Rxa8 {[%clk 0:02:05]} 22. Rc1 {[%clk 0:01:48.3]}
22... Rc8 {[%clk 0:02:04.9]} 23. Ba6 {[%clk 0:01:44.1]} 23... Rc7 {[%clk
0:02:04.9]} 24. Nc3 {[%clk 0:01:44]} 24... h5 {[%clk 0:01:07.8]} 25. Be2 {[%clk
0:01:33.2]} 25... Kg7 {[%clk 0:01:03.9]} 26. h4 {[%clk 0:01:26.1]} 26... Rc8
{[%clk 0:00:57.9]} 27. Na4 {[%clk 0:01:23.8]} 27... g5 {[%clk 0:00:44.2]} 28.
hxg5 {[%clk 0:01:18.2]} 28... Nxg5 {[%clk 0:00:45.1]} 29. Qf5 {[%clk 0:01:00.1]}
29... Ne6 {[%clk 0:00:45.3]} 30. Nc5 {[%clk 0:00:59.6]} 30... Rh8 {[%clk
0:00:29.4]} 31. Nd3 {[%clk 0:00:47.2]} 31... h4 {[%clk 0:00:18.6]} 32. Ne5
{[%clk 0:00:42]} 32... Rc8 {[%clk 0:00:12.9]} 33. Bh5 {[%clk 0:00:35.7]} 33...
Rc7 {[%clk 0:00:08.5]} 34. Bxf7 {[%clk 0:00:35.6]} 34... Rxf7 {[%clk 0:00:09.4]}
35. Qg6+ {[%clk 0:00:35.6]} 1-0